{"text_format":"1","workbook":"xlsx","n_sheets":6,"sheets":["Copertina","range","Titoli - Documento Elettronico","DP - Documento Elettronico","Titoli-DP Documenti Cartacei","Linee Guida per calcolo indice"],"not_rendered":{"charts":0,"images":0,"macros":1,"external_links":0,"defined_names":1,"comments":0,"pivot_tables":0},"unopened":[],"bounds":{"document_bytes":16777216,"sheet_cells":100000,"rows_first":2000,"rows_last":500,"rows_between":2000,"halvings":0,"cell_chars":16384,"cell_head_chars":4096},"cells_cut":0,"cells_raw":0,"read":"whole","date_system":"1900"}

{"sheet":"Copertina","index":0,"n_rows":33,"n_cols":6,"rows_kept":33,"cut":false,"hidden":false,"merged":[[1,0,1,2],[10,4,10,6],[10,0,10,2],[3,4,3,8]]}
[]
["INDICE DI TEMPESTIVITA' DEI PAGAMENTI",null,null,null,-27.503325569358179]
[]
["Amministrazione","140",null,null,"Legenda : Le colonne in giallo nei  fogli EXCEL rappresentano i campi coinvolti nel calcolo dell'indice di Tempestivit? dei Pagamenti"]
["Ufficio","6105-Archivio di Stato di Teramo"]
["Utente",null,null,null,"DP generalizzata documento elettronico ","NO"]
["Data elaborazione","14-12-2023","2.00",null,"DP fondo scorta documento elettronico ","NO"]
["Numero Richiesta","8320",null,null,"Titoli/DP documenti cartacei ","NO"]
[]
[]
["Filtri  utilizzati per i  titoli",null,null,null,"Filtri utilizzati per i  Documenti  Contabili"]
[]
["Esercizio Finanziario","2023",null,null,"Tipo Documento","Tutti"]
[]
["CDR di struttura da /a",null,null,null,"Codice fiscale Fornitore"]
[]
["Ragioneria ","0",null,null,"Nome Fornitore"]
[]
["Data di pagamento da /a","01-10-2023","13-12-2023",null,"Partita IVA Fornitore"]
[]
["Missione da /a",null,null,null,"Ragione Sociale Fornitore"]
[]
["Programma da /a",null,null,null,"Data ricezione documento da / a"]
[]
["Macroaggregato da /a",null,null,null,"Tipo debito",""]
[]
["Categoria da /a"]
[]
["Ufficio da /a","6105","6105"]
[]
["Numero Capitolo da /a"]
[]
["Numero Piano Gestione "]

{"sheet":"range","index":1,"n_rows":9,"n_cols":3,"rows_kept":9,"cut":false,"hidden":true,"merged":[]}
[6,0.64670000000000005,0.68669999999999998]
[7,0.69430000000000003,0.73429999999999995]
[8,0.73,0.77]
[9,0.64670000000000005,0.68669999999999998]
[10,0.68,0.72]
[11,0.70730000000000004,0.74729999999999996]
[12,0.64670000000000005,0.68669999999999998]
[13,0.67230000000000001,0.71230000000000004]
[14,0.69430000000000003,0.73429999999999995]

{"sheet":"Titoli - Documento Elettronico","index":2,"n_rows":48,"n_cols":35,"rows_kept":48,"cut":false,"hidden":false,"merged":[]}
["AMM.","CDR DI STRUTTURA","RAGIONERIA","MISSIONE","PROGRAMMA","MACROAGGREGATO","CATEGORIA","UFFICIO","CAPITOLO","PG","TIPO TITOLO","TITOLO","COD. GESTIONALE","IMPORTO TOTALE TITOLO",null,null,"CAUSALE TITOLO","DATA FIRMA TITOLO","IMPORTO TITOLO ASSOCIATO AL DOCUMENTO","DATA PAGAMENTO TITOLO   (A)","IMPORTO DOVUTO","DATA SCADENZA DOCUMENTO                     (B)","CALCOLO GIORNI                ( A - B )","DATA INIZIO SOSPENSIONE","DATA FINE SOSPENSIONE","NUMERO GIORNI SOSPENSIONE (C)","CALCOLO GIORNI ESCLUSE SOSPENSIONI (A - B - C)","IMPORTO NOTA DI CREDITO","OPERAZIONE DI SISTEMA","DATA RICEZIONE DOCUMENTO","NUM. DOCUMENTO FORNITORE","DATA DOCUMENTO FORNITORE","FORNITORE","C.F. FORNITORE","TIPO DEBITO"]
["140","5-DIREZIONE GENERALE ARCHIVI","870","21-Tutela e valorizzazione dei beni e attivita' culturali e paesaggistici","9-Tutela e valorizzazione dei beni archivistici","1","2","6105-Archivio di Stato di Teramo","3030","22","Ordinativo secondario","202314087030304039","064","18,93",null,null,"Bollette acqua SEZI-H20230000692261,  SEZI-H20230000692260 -","2023-11-21","9,85","2023-11-21","9,85","2023-12-17",{"$f":"IF(AND(V2<>\"\",T2<>\"\"),SUM(T2-V2),\"\")","v":-26},null,null,{"$f":"IF(AND(X2<>\"\",Y2<>\"\",T2<>\"\"),SUM(IF(Y2<T2,Y2,T2)-X2),\"\")","v":""},{"$f":"IF(AND(Z2<>\"\",W2<>\"\"),SUM(W2-Z2),\"\")","v":""},"0,00","60610","2023-11-17","SEZI_H20230000692260","2023-11-14","RUZZO RETI S.P.A.","01522960671","CO"]
["140","5-DIREZIONE GENERALE ARCHIVI","870","21-Tutela e valorizzazione dei beni e attivita' culturali e paesaggistici","9-Tutela e valorizzazione dei beni archivistici","1","2","6105-Archivio di Stato di Teramo","3030","22","Ordinativo secondario","202314087030304041","070","650,00",null,null,"CIG ZA8395513B Fattura 923 - Pulizie ottobre 2023","2023-11-21","650,00","2023-11-21","650,00","2023-12-03",-12,null,null,"","","0,00","60583","2023-11-03","923","2023-10-31","TESTARDI SRL","01474400676","CO"]
["140","5-DIREZIONE GENERALE ARCHIVI","870","21-Tutela e valorizzazione dei beni e attivita' culturali e paesaggistici","9-Tutela e valorizzazione dei beni archivistici","1","2","6105-Archivio di Stato di Teramo","3030","16","Ordinativo secondario","202314087030304537","039","152,00",null,null,"Fattura 1-FE - realizzazione servizio audiovisivo funzioname","2023-10-17","152,00","2023-10-17","152,00","2023-11-10",-24,null,null,"","","0,00","51588","2023-10-11","1/FE","2023-10-02","CRISTIANO CATALINI","CTLCST84A13L103H","CO"]
["140","5-DIREZIONE GENERALE ARCHIVI","870","21-Tutela e valorizzazione dei beni e attivita' culturali e paesaggistici","9-Tutela e valorizzazione dei beni archivistici","1","2","6105-Archivio di Stato di Teramo","3030","16","Ordinativo secondario","2023140870303045310","035","150,00",null,null,"Fattura 05-E - Servizio ausiliario per analisi dei depositi","2023-10-26","150,00","2023-10-26","150,00","2023-11-23",-28,null,null,"","","0,00","54349","2023-10-24","05/E","2023-10-23","SIMONA BUDASSI","BDSSMN73C62B519G","CO"]
["140","5-DIREZIONE GENERALE ARCHIVI","870","21-Tutela e valorizzazione dei beni e attivita' culturali e paesaggistici","9-Tutela e valorizzazione dei beni archivistici","1","2","6105-Archivio di Stato di Teramo","3030","16","Ordinativo secondario","2023140870303045311","047","1500,00",null,null,"CIG Z893C973D7  Fattura FPA 3-23 - manutenzione impianti e s","2023-10-27","1500,00","2023-10-27","1500,00","2023-11-25",-29,null,null,"","","0,00","54695","2023-10-26","FPA 3/23","2023-10-26","LUCIDI GIANLUCA","LCDGLC82A18L103H","CO"]
["140","5-DIREZIONE GENERALE ARCHIVI","870","21-Tutela e valorizzazione dei beni e attivita' culturali e paesaggistici","9-Tutela e valorizzazione dei beni archivistici","1","2","6105-Archivio di Stato di Teramo","3030","16","Ordinativo secondario","2023140870303045313","047","3255,00",null,null,"Fattura 002-00041 - Manutenzione infissi Sant'Agostino","2023-11-14","3255,00","2023-11-14","3255,00","2023-12-10",-26,null,null,"","","0,00","58634","2023-11-10","002-00041","2023-11-09","F.A.B. DI ANDREA BARNABEI","BRNNDR79T31L103F","CO"]
["140","5-DIREZIONE GENERALE ARCHIVI","870","21-Tutela e valorizzazione dei beni e attivita' culturali e paesaggistici","9-Tutela e valorizzazione dei beni archivistici","1","2","6105-Archivio di Stato di Teramo","3030","16","Ordinativo secondario","2023140870303045317","028","380,60",null,null,"CIG Z943D5DC95 - Fattura 377- Acquisto beni diversi per funz","2023-12-04","380,60","2023-12-04","380,60","2023-12-29",-25,null,null,"","","0,00","64076","2023-11-29","377","2023-11-29","FE.MI. S.A.S. DI MINERVINI CEL","01018320679","CO"]
["140","5-DIREZIONE GENERALE ARCHIVI","870","21-Tutela e valorizzazione dei beni e attivita' culturali e paesaggistici","9-Tutela e valorizzazione dei beni archivistici","1","2","6105-Archivio di Stato di Teramo","3060","53","Ordinativo secondario","2023140870306053","070","350,00",null,null,"CIG Z1D3C74933 - Fattura 822 - Pulizia straordinaria San Dom","2023-10-06","350,00","2023-10-06","350,00","2023-11-04",-29,null,null,"","","0,00","49208","2023-10-05","822","2023-09-30","TESTARDI SRL","01474400676","CO"]
["140","5-DIREZIONE GENERALE ARCHIVI","870","21-Tutela e valorizzazione dei beni e attivita' culturali e paesaggistici","9-Tutela e valorizzazione dei beni archivistici","1","2","6105-Archivio di Stato di Teramo","3060","52","Ordinativo secondario","202314087030607519","028","1113,00",null,null,"CIG Z093C54306 - fattura 124 - Acquisto deumidificatori per","2023-10-12","1113,00","2023-10-12","1113,00","2023-11-10",-29,null,null,"","","0,00","50477","2023-10-11","124","2023-10-11","RITA CAVICCHIOLI","CVCRTI62S52G843P","CO"]
["140","5-DIREZIONE GENERALE ARCHIVI","870","21-Tutela e valorizzazione dei beni e attivita' culturali e paesaggistici","9-Tutela e valorizzazione dei beni archivistici","1","2","6105-Archivio di Stato di Teramo","3060","52","Ordinativo secondario","202314087030607523","028","288,52",null,null,"CIG ZB13CA9127- Fattura 327 - Acquisto beni e accessori occo","2023-11-06","288,52","2023-11-06","288,52","2023-11-26",-20,null,null,"","","0,00","56336","2023-10-27","327","2023-10-27","FE.MI. S.A.S. DI MINERVINI CEL","01018320679","CO"]
["140","5-DIREZIONE GENERALE ARCHIVI","870","21-Tutela e valorizzazione dei beni e attivita' culturali e paesaggistici","9-Tutela e valorizzazione dei beni archivistici","1","2","6105-Archivio di Stato di Teramo","3060","52","Ordinativo secondario","202314087030607525","049","520,00",null,null,"CIG Z893C973D7 Fattura FPA -23 - Manutenzione San Domenico (","2023-11-14","520,00","2023-11-14","520,00","2023-12-13",-29,null,null,"","","0,00","58637","2023-11-13","FPA 4/23","2023-11-10","LUCIDI GIANLUCA","LCDGLC82A18L103H","CO"]
["140","5-DIREZIONE GENERALE ARCHIVI","870","21-Tutela e valorizzazione dei beni e attivita' culturali e paesaggistici","9-Tutela e valorizzazione dei beni archivistici","1","2","6105-Archivio di Stato di Teramo","3060","52","Ordinativo secondario","202314087030607527","028","1475,40",null,null,"CIG Z0F3D130D7 - Fattura 158 - Acquisto n.3 pc per funzionam","2023-11-14","1475,40","2023-11-14","1475,40","2023-12-13",-29,null,null,"","","0,00","58584","2023-11-11","158","2023-11-06","CM SERVIZI DI STEFANO MARCATTI","02104930678","CO"]
["140","5-DIREZIONE GENERALE ARCHIVI","870","21-Tutela e valorizzazione dei beni e attivita' culturali e paesaggistici","9-Tutela e valorizzazione dei beni archivistici","1","2","6105-Archivio di Stato di Teramo","3060","52","Ordinativo secondario","202314087030607529","032","530,00",null,null,"CIG ZDE3D03AA6-fattura 6-172- Acquisto monitor e stampante","2023-11-28","530,00","2023-11-28","530,00","2023-12-28",-30,null,null,"","","0,00","62486","2023-11-28","6/172","2023-11-28","DEALER INFORMATICA SRL UNIPERS","02423220694","CO"]
["140","5-DIREZIONE GENERALE ARCHIVI","870","21-Tutela e valorizzazione dei beni e attivita' culturali e paesaggistici","9-Tutela e valorizzazione dei beni archivistici","1","2","6105-Archivio di Stato di Teramo","3090","52","Ordinativo secondario","202314087030902121","032","50,00",null,null,"CIG ZE13D21310 - FATTURA 963 - Sostituzione HD interno pc us","2023-11-14","50,00","2023-11-14","50,00","2023-12-10",-26,null,null,"","","0,00","58581","2023-11-10","963","2023-10-31","DATAMARKET SRL","00884490673","CO"]
["140","5-DIREZIONE GENERALE ARCHIVI","870","21-Tutela e valorizzazione dei beni e attivita' culturali e paesaggistici","9-Tutela e valorizzazione dei beni archivistici","1","2","6105-Archivio di Stato di Teramo","3090","52","Ordinativo secondario","202314087030902123","049","5727,00",null,null,"CIG Z963A73EDB Fattura 110 - Affidamento Mepa manutenzione i","2023-12-12","5727,00","2023-12-12","5727,00","2024-01-10",-29,null,null,"","","0,00","67037","2023-12-11","110/PA","2023-12-06","PIEMME ESTINTORI SRL","01516800446","CO"]
["140","5-DIREZIONE GENERALE ARCHIVI","870","21-Tutela e valorizzazione dei beni e attivita' culturali e paesaggistici","9-Tutela e valorizzazione dei beni archivistici","3","21","6105-Archivio di Stato di Teramo","7665","2","Ordinativo secondario","20231408707665531","232","183,60",null,null,"CIG Z3C3C95F16 - Fattura 6-171 - Acquisto attrezzature infor","2023-11-29","183,60","2023-11-29","183,60","2023-12-28",-29,null,null,"","","0,00","62627","2023-11-28","6/171","2023-11-28","DEALER INFORMATICA SRL UNIPERS","02423220694","CO"]
["140","5-DIREZIONE GENERALE ARCHIVI","870","21-Tutela e valorizzazione dei beni e attivita' culturali e paesaggistici","9-Tutela e valorizzazione dei beni archivistici","1","2","6105-Archivio di Stato di Teramo","3090","52","Ordinativo secondario","202314087030902119","047","650,00",null,null,"CIG ZC63B22671 - FATTURA 47 - Installazione paletto S. Agost","2023-10-18","650,00","2023-10-18","650,00","2023-11-17",-30,null,null,"","","0,00","52210","2023-10-18","47","2023-10-17","SO.CO.IN SAS DEI F.LLI DE NARD","00886180678","CO"]
["140","5-DIREZIONE GENERALE ARCHIVI","870","21-Tutela e valorizzazione dei beni e attivita' culturali e paesaggistici","9-Tutela e valorizzazione dei beni archivistici","1","2","6105-Archivio di Stato di Teramo","3060","52","Ordinativo secondario","202314087030607533","028","968,00",null,null,"CIG Z023D84A11 Fattura 100 - Acquisto totem tramite ordine d","2023-12-12","968,00","2023-12-12","968,00","2024-01-11",-30,null,null,"","","0,00","67656","2023-12-12","100/PA","2023-12-12","MCDIGIT SRL UNIPERSONALE","02304410695","CO"]
["140","5-DIREZIONE GENERALE ARCHIVI","870","21-Tutela e valorizzazione dei beni e attivita' culturali e paesaggistici","9-Tutela e valorizzazione dei beni archivistici","1","2","6105-Archivio di Stato di Teramo","3060","52","Ordinativo secondario","202314087030607531","049","692,00",null,null,"CIG ZFA3C7FF53 Fattura 109 - Servizio di sostituzione compon","2023-12-12","692,00","2023-12-12","692,00","2024-01-10",-29,null,null,"","","0,00","67017","2023-12-11","109/PA","2023-12-06","PIEMME ESTINTORI SRL","01516800446","CO"]
["140","5-DIREZIONE GENERALE ARCHIVI","870","21-Tutela e valorizzazione dei beni e attivita' culturali e paesaggistici","9-Tutela e valorizzazione dei beni archivistici","1","2","6105-Archivio di Stato di Teramo","3060","52","Ordinativo secondario","202314087030607521","021","300,00",null,null,"CIG ZC63CF9E2B- Fattura 172 - Stampe di materiale vario (loc","2023-10-31","300,00","2023-10-31","300,00","2023-11-29",-29,null,null,"","","0,00","55366","2023-10-30","172","2023-10-27","BACKNET DI COLELLA CHRISTIAN","CLLCRS73M07E058C","CO"]
["140","5-DIREZIONE GENERALE ARCHIVI","870","21-Tutela e valorizzazione dei beni e attivita' culturali e paesaggistici","9-Tutela e valorizzazione dei beni archivistici","1","2","6105-Archivio di Stato di Teramo","3060","52","Ordinativo secondario","202314087030607517","028","1956,00",null,null,"CIG ZA83C9444F - fattura 355 - ODA Mepa377079 - Acquisto n.","2023-10-10","1956,00","2023-10-10","1956,00","2023-11-09",-30,null,null,"","","0,00","49806","2023-10-10","355","2023-10-09","ARREDIORG S.R.L.S.","15292041009","CO"]
["140","5-DIREZIONE GENERALE ARCHIVI","870","21-Tutela e valorizzazione dei beni e attivita' culturali e paesaggistici","9-Tutela e valorizzazione dei beni archivistici","1","2","6105-Archivio di Stato di Teramo","3060","52","Ordinativo secondario","202314087030607515","053","2350,00",null,null,"CIG Z343C69130 - Fattura 292-05 - Sostituzione videocamere d","2023-10-06","2350,00","2023-10-06","2350,00","2023-11-03",-28,null,null,"","","0,00","49203","2023-10-04","292/05","2023-09-30","VIGILANTES GROUP SRL","01674300676","CO"]
["140","5-DIREZIONE GENERALE ARCHIVI","870","21-Tutela e valorizzazione dei beni e attivita' culturali e paesaggistici","9-Tutela e valorizzazione dei beni archivistici","1","2","6105-Archivio di Stato di Teramo","3060","52","Ordinativo secondario","202314087030607513","028","1738,00",null,null,"CIG 7420277 - ODA Mepa 7420277 - fattura 2353 - Acquisto n.","2023-10-06","1738,00","2023-10-06","1738,00","2023-11-03",-28,null,null,"","","0,00","49198","2023-10-04","2353","2023-09-27","ULTRAPROMEDIA SRL","10324241008","CO"]
["140","5-DIREZIONE GENERALE ARCHIVI","870","21-Tutela e valorizzazione dei beni e attivita' culturali e paesaggistici","9-Tutela e valorizzazione dei beni archivistici","1","2","6105-Archivio di Stato di Teramo","3060","53","Ordinativo secondario","2023140870306059","066","2500,00",null,null,"CIG ZB83CA9019 - Fattura 33 - canone per servizio potatura e","2023-12-04","2500,00","2023-12-04","2500,00","2024-01-03",-30,null,null,"","","0,00","64074","2023-12-04","33","2023-12-01","S.A.U. DI DI PASQUALE FRANCESC","DPSFNC69T15E343F","CO"]
["140","5-DIREZIONE GENERALE ARCHIVI","870","21-Tutela e valorizzazione dei beni e attivita' culturali e paesaggistici","9-Tutela e valorizzazione dei beni archivistici","1","2","6105-Archivio di Stato di Teramo","3060","53","Ordinativo secondario","2023140870306057","066","52,00",null,null,"Fattura 1-PA - Canone per servizio elaborazione CUD 2023","2023-11-28","52,00","2023-11-28","52,00","2023-12-27",-29,null,null,"","","0,00","62297","2023-11-27","1/PA","2023-11-22","EZIO VALLESE","VLLZEI57P27F764Q","CO"]
["140","5-DIREZIONE GENERALE ARCHIVI","870","21-Tutela e valorizzazione dei beni e attivita' culturali e paesaggistici","9-Tutela e valorizzazione dei beni archivistici","1","2","6105-Archivio di Stato di Teramo","3060","53","Ordinativo secondario","2023140870306055","063","1078,11",null,null,"Bolletta 412314640247 - Luce settembre 2023","2023-10-11","1078,11","2023-10-11","1078,11","2023-11-09",-29,null,null,"","","0,00","50284","2023-10-10","412314640247","2023-10-04","HERA COMM S.P.A.","02221101203","CO"]
["140","5-DIREZIONE GENERALE ARCHIVI","870","21-Tutela e valorizzazione dei beni e attivita' culturali e paesaggistici","9-Tutela e valorizzazione dei beni archivistici","1","2","6105-Archivio di Stato di Teramo","3033","2","Ordinativo secondario","202314087030332533","028","314,96",null,null,"CIG Z483CF8603 Fattura 1014 - Acquisto n. 2 scanner ODA MePA","2023-11-07","314,96","2023-11-07","314,96","2023-12-04",-27,null,null,"","","0,00","56740","2023-11-04","1014","2023-10-31","BLEKA SRL UNIPERSONALE","01499130332","CO"]
["140","5-DIREZIONE GENERALE ARCHIVI","870","21-Tutela e valorizzazione dei beni e attivita' culturali e paesaggistici","9-Tutela e valorizzazione dei beni archivistici","1","2","6105-Archivio di Stato di Teramo","3033","2","Ordinativo secondario","202314087030332531","032","233,80",null,null,"CIG ZB83CF84D3 Fattura 818-B - Acquisto n. 2 Hard disk per l","2023-11-02","233,80","2023-11-02","233,80","2023-11-29",-27,null,null,"","","0,00","55836","2023-10-30","818/B","2023-10-27","GRUPPO GALAGANT SRL","14197361000","CO"]
["140","5-DIREZIONE GENERALE ARCHIVI","870","21-Tutela e valorizzazione dei beni e attivita' culturali e paesaggistici","9-Tutela e valorizzazione dei beni archivistici","1","2","6105-Archivio di Stato di Teramo","3033","2","Ordinativo secondario","202314087030331631","023","125,40",null,null,"CIG Z743D67E8F -Fattura 53-23 - Acquisto libri per la Biblio","2023-11-29","125,40","2023-11-29","125,40","2023-12-24",-25,null,null,"","","0,00","62876","2023-11-24","FPA 53/23","2023-11-24","LIBRERIA VELASQUEZ","BRLFNC76L30D643E","CO"]
["140","5-DIREZIONE GENERALE ARCHIVI","870","21-Tutela e valorizzazione dei beni e attivita' culturali e paesaggistici","9-Tutela e valorizzazione dei beni archivistici","1","2","6105-Archivio di Stato di Teramo","3030","16","Ordinativo secondario","2023140870303045319","049","550,00",null,null,"CIG ZED3C46329 Fattura 23-54183 - verifica e certificazione","2023-12-12","550,00","2023-12-12","550,00","2024-01-06",-25,null,null,"","","0,00","67039","2023-12-07","23-54183","2023-12-07","ECO CERTIFICAZIONI SPA","01358950390","CO"]
["140","5-DIREZIONE GENERALE ARCHIVI","870","21-Tutela e valorizzazione dei beni e attivita' culturali e paesaggistici","9-Tutela e valorizzazione dei beni archivistici","1","2","6105-Archivio di Stato di Teramo","3030","16","Ordinativo secondario","2023140870303045315","072","300,00",null,null,"CIG ZF73C7724F Fattura EL-0000236 - Imballaggio e trasporto","2023-11-14","300,00","2023-11-14","300,00","2023-12-10",-26,null,null,"","","0,00","58583","2023-11-10","EL-0000236","2023-10-31","CSA S.C.P.A.","09065821002","CO"]
["140","5-DIREZIONE GENERALE ARCHIVI","870","21-Tutela e valorizzazione dei beni e attivita' culturali e paesaggistici","9-Tutela e valorizzazione dei beni archivistici","1","2","6105-Archivio di Stato di Teramo","3030","16","Ordinativo secondario","202314087030304538","047","3450,00",null,null,"CIG Z893C973D7 - Fattura FPA 2-23 - Lavori di manutenzione S","2023-10-18","3450,00","2023-10-18","3450,00","2023-11-16",-29,null,null,"","","0,00","52184","2023-10-17","FPA 2/23","2023-10-16","LUCIDI GIANLUCA","LCDGLC82A18L103H","CO"]
["140","5-DIREZIONE GENERALE ARCHIVI","870","21-Tutela e valorizzazione dei beni e attivita' culturali e paesaggistici","9-Tutela e valorizzazione dei beni archivistici","1","2","6105-Archivio di Stato di Teramo","3030","22","Ordinativo secondario","202314087030304045","070","650,00",null,null,"CIG ZA8395513B  - Fattura 1026 - Canone pulizie novembre 202","2023-12-04","650,00","2023-12-04","650,00","2024-01-01",-28,null,null,"","","0,00","64078","2023-12-02","1026","2023-11-30","TESTARDI SRL","01474400676","CO"]
["140","5-DIREZIONE GENERALE ARCHIVI","870","21-Tutela e valorizzazione dei beni e attivita' culturali e paesaggistici","9-Tutela e valorizzazione dei beni archivistici","1","2","6105-Archivio di Stato di Teramo","3030","22","Ordinativo secondario","202314087030304039","064","18,93",null,null,"Bollette acqua SEZI-H20230000692261,  SEZI-H20230000692260 -","2023-11-21","9,08","2023-11-21","9,08","2023-12-17",-26,null,null,"","","0,00","60587","2023-11-17","SEZI_H20230000692261","2023-11-14","RUZZO RETI S.P.A.","01522960671","CO"]
["140","5-DIREZIONE GENERALE ARCHIVI","870","21-Tutela e valorizzazione dei beni e attivita' culturali e paesaggistici","9-Tutela e valorizzazione dei beni archivistici","1","2","6105-Archivio di Stato di Teramo","3030","22","Ordinativo secondario","202314087030304038","063","42,46",null,null,"Bolletta 422310407296 - Luce ottobre 2023","2023-11-21","42,46","2023-11-21","42,46","2023-12-17",-26,null,null,"","","0,00","60639","2023-11-17","422310407296","2023-11-16","HERA COMM S.P.A.","02221101203","CO"]
["140","5-DIREZIONE GENERALE ARCHIVI","870","21-Tutela e valorizzazione dei beni e attivita' culturali e paesaggistici","9-Tutela e valorizzazione dei beni archivistici","1","2","6105-Archivio di Stato di Teramo","3030","22","Ordinativo secondario","202314087030304036","063","42,46",null,null,"Bolletta  422310390762 - Bolletta luce componente CTS 1-31 l","2023-10-26","42,46","2023-10-26","42,46","2023-11-23",-28,null,null,"","","0,00","54351","2023-10-23","422310390762","2023-10-18","HERA COMM S.P.A.","02221101203","CO"]
["140","5-DIREZIONE GENERALE ARCHIVI","870","21-Tutela e valorizzazione dei beni e attivita' culturali e paesaggistici","9-Tutela e valorizzazione dei beni archivistici","1","2","6105-Archivio di Stato di Teramo","3030","22","Ordinativo secondario","202314087030304034","065","72,08",null,null,"Bolletta FE000120230002963373 - Bolletta gas settembre 2023","2023-10-26","72,08","2023-10-26","72,08","2023-11-23",-28,null,null,"","","0,00","54352","2023-10-23","FE000120230002963373","2023-10-20","AGSM AIM ENERGIA SPA","02968430237","CO"]
["140","5-DIREZIONE GENERALE ARCHIVI","870","21-Tutela e valorizzazione dei beni e attivita' culturali e paesaggistici","9-Tutela e valorizzazione dei beni archivistici","1","2","6105-Archivio di Stato di Teramo","3030","22","Ordinativo secondario","202314087030304032","060","219,61",null,null,"Bollette TIM fisso 8P00199176,  8P00199398,  8P00199397,  8P","2023-10-24","52,97","2023-10-24","52,97","2023-11-13",-20,null,null,"","","0,00","53655","2023-10-14","8P00198615","2023-10-11","TIM  S.P.A.","00488410010","CO"]
["140","5-DIREZIONE GENERALE ARCHIVI","870","21-Tutela e valorizzazione dei beni e attivita' culturali e paesaggistici","9-Tutela e valorizzazione dei beni archivistici","1","2","6105-Archivio di Stato di Teramo","3030","22","Ordinativo secondario","202314087030304032","060","219,61",null,null,"Bollette TIM fisso 8P00199176,  8P00199398,  8P00199397,  8P","2023-10-24","52,97","2023-10-24","52,97","2023-11-13",-20,null,null,"","","0,00","53650","2023-10-14","8P00199397","2023-10-11","TIM  S.P.A.","00488410010","CO"]
["140","5-DIREZIONE GENERALE ARCHIVI","870","21-Tutela e valorizzazione dei beni e attivita' culturali e paesaggistici","9-Tutela e valorizzazione dei beni archivistici","1","2","6105-Archivio di Stato di Teramo","3030","22","Ordinativo secondario","202314087030304032","060","219,61",null,null,"Bollette TIM fisso 8P00199176,  8P00199398,  8P00199397,  8P","2023-10-24","52,97","2023-10-24","52,97","2023-11-22",-29,null,null,"","","0,00","53638","2023-10-20","8P00199398","2023-10-11","TIM  S.P.A.","00488410010","CO"]
["140","5-DIREZIONE GENERALE ARCHIVI","870","21-Tutela e valorizzazione dei beni e attivita' culturali e paesaggistici","9-Tutela e valorizzazione dei beni archivistici","1","2","6105-Archivio di Stato di Teramo","3030","22","Ordinativo secondario","202314087030304032","060","219,61",null,null,"Bollette TIM fisso 8P00199176,  8P00199398,  8P00199397,  8P","2023-10-24","60,70","2023-10-24","60,70","2023-11-22",-29,null,null,"","","0,00","53629","2023-10-23","8P00199176","2023-10-11","TIM  S.P.A.","00488410010","CO"]
["140","5-DIREZIONE GENERALE ARCHIVI","870","21-Tutela e valorizzazione dei beni e attivita' culturali e paesaggistici","9-Tutela e valorizzazione dei beni archivistici","1","2","6105-Archivio di Stato di Teramo","3030","22","Ordinativo secondario","202314087030304030","069","90,00",null,null,"CIG Z763C8B75F Fattura 291-05 - Servizio estrapolazione vide","2023-10-11","90,00","2023-10-11","90,00","2023-11-03",-23,null,null,"","","0,00","50253","2023-10-04","291/05","2023-09-30","VIGILANTES GROUP SRL","01674300676","CO"]
["140","5-DIREZIONE GENERALE ARCHIVI","870","21-Tutela e valorizzazione dei beni e attivita' culturali e paesaggistici","9-Tutela e valorizzazione dei beni archivistici","1","2","6105-Archivio di Stato di Teramo","3030","22","Ordinativo secondario","202314087030304028","070","650,00",null,null,"CIG ZA8395513B - Fattura 823 - pulizia S. Agostino settembre","2023-10-10","650,00","2023-10-10","650,00","2023-11-04",-25,null,null,"","","0,00","49809","2023-10-05","823","2023-09-30","TESTARDI SRL","01474400676","CO"]
["140","5-DIREZIONE GENERALE ARCHIVI","870","21-Tutela e valorizzazione dei beni e attivita' culturali e paesaggistici","9-Tutela e valorizzazione dei beni archivistici","1","1","6105-Archivio di Stato di Teramo","3002","8","Ordinativo secondario","202314087030024791","013","2387,92",null,null,"CIG 90511751E6 Fattura N57839 - Buoni pasto agosto - ottobre","2023-11-16","2387,92","2023-11-16","2387,92","2023-12-15",-29,null,null,"","","0,00","59434","2023-11-15","N57839","2023-11-14","EDENRED ITALIA SRL","01014660417","CO"]
["140","5-DIREZIONE GENERALE ARCHIVI","870","21-Tutela e valorizzazione dei beni e attivita' culturali e paesaggistici","9-Tutela e valorizzazione dei beni archivistici","1","1","6105-Archivio di Stato di Teramo","3002","8","Ordinativo secondario","202314087030024781","013","57,04",null,null,"CIG 90511751E6 N57839","2023-11-16","57,04","2023-11-16","57,04","2023-12-15",-29,null,null,"","","0,00","59434","2023-11-15","N57839","2023-11-14","EDENRED ITALIA SRL","01014660417","CO"]
["140","5-DIREZIONE GENERALE ARCHIVI","870","21-Tutela e valorizzazione dei beni e attivita' culturali e paesaggistici","15-Tutela del patrimonio culturale","1","2","6105-Archivio di Stato di Teramo","1321","1","Ordinativo secondario","202314087013211837","075","1390,91",null,null,"Fattura 525-01 - Governance sicurezza III trimestre","2023-11-28","1390,91","2023-11-28","1390,91","2023-11-26",2,null,null,"","","0,00","62476","2023-10-27","525/01","2023-10-27","CSA TEAM S.R.L.","01764710669","CO"]
["196","5-DIREZIONE GENERALE ARCHIVI","960",null,null,null,null,"6105-Archivio di Stato di Teramo","224","30","Ordinativo secondario","2023196960224251","053","11800,00",null,null,"CIG 9171185D45 Fattura 030-2023 - Fondi 8x1000 - Restauro 12","2023-11-15","11800,00","2023-11-15","11800,00","2023-12-14",-29,null,null,"","","0,00","59014","2023-11-14","030/2023","2023-11-14","MILIO GUIDO","MLIGDU67A30H501Y","CO"]

{"sheet":"DP - Documento Elettronico","index":3,"n_rows":1,"n_cols":21,"rows_kept":1,"cut":false,"hidden":false,"merged":[]}
["DICHIARAZIONE DI PAGAMENTO/ chiusura debito","IMPORTO TOTALE DP","CDR di struttura","UFFICIO","IMPORTO DP ASSOCIATO AL DOCUMENTO","DATA PAGAMENTO/ chiusura debito   (A)","IMPORTO DOVUTO","DATA SCADENZA DOCUMENTO                     (B)","CALCOLO GIORNI                ( A - B )","DATA INIZIO SOSPENSIONE","DATA FINE SOSPENSIONE","NUMERO GIORNI SOSPENSIONE (C)","CALCOLO GIORNI ESCLUSE SOSPENSIONI (A - B - C)","IMPORTO NOTA DI CREDITO","OPERAZIONE DI SISTEMA","DATA RICEZIONE DOCUMENTO","NUM. DOCUMENTO FORNITORE","DATA DOCUMENTO FORNITORE","FORNITORE","C.F. FORNITORE","TIPO DEBITO"]

{"sheet":"Titoli-DP Documenti Cartacei","index":4,"n_rows":1,"n_cols":35,"rows_kept":1,"cut":false,"hidden":false,"merged":[]}
["AMM.","CDR DI STRUTTURA","RAGIONERIA","MISSIONE","PROGRAMMA","MACROAGGREGATO","CATEGORIA","UFFICIO","CAPITOLO","PG","TIPO TITOLO","TITOLO","COD. GESTIONALE","IMPORTO TOTALE TITOLO","BENEFICIARIO TIT.","C.F. BENEFICIARIO TIT.","CAUSALE TITOLO","DATA FIRMA TITOLO","IMPORTO TITOLO ASSOCIATO AL DOCUMENTO","DATA PAGAMENTO TITOLO   (A)","IMPORTO DOVUTO","DATA SCADENZA DOCUMENTO                     (B)","CALCOLO GIORNI                ( A - B )","DATA INIZIO SOSPENSIONE","DATA FINE SOSPENSIONE","NUMERO GIORNI SOSPENSIONE (C)","CALCOLO GIORNI ESCLUSE SOSPENSIONI (A - B - C)","IMPORTO NOTA DI CREDITO","OPERAZIONE DI SISTEMA","DATA RICEZIONE DOCUMENTO","NUM. DOCUMENTO FORNITORE","DATA DOCUMENTO FORNITORE","FORNITORE","C.F. FORNITORE","TIPO DEBITO"]

{"sheet":"Linee Guida per calcolo indice","index":5,"n_rows":21,"n_cols":7,"rows_kept":21,"cut":false,"hidden":false,"merged":[[1,0,1,5],[0,0,0,5],[20,0,20,5],[15,0,15,5],[16,0,16,5],[2,0,2,5],[3,0,3,5],[12,0,12,5],[13,0,13,5],[14,0,14,5],[18,0,18,5],[19,0,19,5],[4,0,4,7],[6,0,6,7],[8,0,8,7],[17,0,17,5]]}
["Linee Guida  per calcolo indice","","",""]
["Descrizione della Funzionalita'"]
["All' interno  del Report è presente  una funzionalità  che permette il calcolo  dell’indice di tempestività accedendo direttamente ai dati presenti sul foglio EXCEL e  calcolerà l’indice di Tempestività dei pagamenti in base ai dati presenti sul foglio EXCEL ogniqualvolta l’utente esegue la funzionalità di calcolo attraverso il bottone \"Calcola Indice\" presente nel foglio \"Copertina\"."]
["L' l’indicatore di tempestività verrà calcolato come la somma , per ciascuna fattura individuata , dei giorni effettivi intercorrenti tra la data di scadenza della fattura e la data di pagamento ai fornitori, moltiplicata per l’importo dovuto, rapportata alla somma degli importi pagati nel periodo di riferimento."]
["I campi che prenderà in considerazione la macro , in tutti i singoli fogli, per il calcolo dell’indice di performance dei pagamenti, saranno i seguenti (con data inizio e fine sospensione opzionali): "]
["IMPORTO TITOLO ASSOCIATO AL DOCUMENTO","DATA PAGAMENTO TITOLO","IMPORTO DOVUTO","DATA SCADENZA DOCUMENTO",null,"DATA INIZIO SOSPENSIONE","DATA FINE SOSPENSIONE"]
["Nel caso di richiesta dell’ elenco di tutti i documenti pagati da altre amministrazioni ( Titoli - Altre Amministrazioni),  l utente, per poter calcolare l’indice di performance dei pagamenti dovrà inserire manualmente i seguenti campi presenti nel foglio excel (con data inizio e fine sospensione opzionali):"]
["IMPORTO TITOLO  ASSOCIATO AL DOCUMENTO","DATA PAGAMENTO TITOLO","IMPORTO DOVUTO","DATA SCADENZA DOCUMENTO",null,"DATA INIZIO SOSPENSIONE","DATA FINE SOSPENSIONE"]
["Nel caso di richiesta dell’ elenco delle fatture cartacee ( Titoli - Documenti Cartacei),  l'utente, per poter calcolare l’indice di performance dei pagamenti dovrà inserire manualmente i seguenti campi presenti nel foglio excel , laddove risultassero mancanti (con data inizio e fine sospensione opzionali):"]
["IMPORTO DOVUTO","DATA SCADENZA DOCUMENTO",null,null,null,"DATA INIZIO SOSPENSIONE","DATA FINE SOSPENSIONE"]
[]
[]
["Regole di compilazione dei campi coinvolti nella funzione per il calcolo dell'indice ","","",""]
["1) Non aggiungere altri fogli all'interno del Report"]
["2) Non modificare il nome dei  fogli "]
["3) I campi \" Importo\"  devono essere valori numerici con 2 decimali separati dalla virgola"]
["4)  I campi \"Data\" devono avere il formato GG/MM/AAAA"]
["5)  Per ogni riga inserita i primi quattro campi, utilizzati dalla funzione di calcolo, devono essere TUTTI valorizzati. Sono opzionali le date di inizio e fine sospensione"]
["6) Il campo data pagamento titolo non deve essere superiore alla data odierna"]
["7) Non devono essere aggiunte colonne nei singoli fogli"]
["8) Non devono essere spostate le  colonne nei singoli fogli"]